bitfinex-derivatives/quotes_ETHF0:USTF0_20250518
["timestamp","ask_amount","ask_price","bid_price","bid_amount"]
[1747550709966,0.79969,2500.1,2500.0,8.1116]
[1747550710167,0.79969,2500.1,2500.0,11.1696]
[1747550710368,0.79969,2500.1,2500.0,9.3696]
[1747550710562,0.79969,2500.1,2500.0,10.44825145]
[1747550712472,0.79969,2500.1,2500.0,9.3696]
[1747550713573,0.79969,2500.1,2500.0,4.3696]
[1747550717171,0.79969,2500.1,2500.0,1.3116]
[1747550717371,2.17759,2500.1,2500.0,1.3116]
[1747550721077,2.17759,2500.1,2500.0,1.40378003]
[1747550721479,5.38539,2500.1,2500.0,1.40378003]
[1747550723074,5.38539,2500.1,2500.0,0.09218003]
[1747550724179,10.38539,2500.1,2500.0,3e-08]
[1747550724378,0.79992,2499.4,2499.3,0.6487]
[1747550725071,0.79992,2499.4,2499.3,1.9129]
[1747550725272,0.79992,2499.4,2499.3,4.9709]
[1747550725479,0.79992,2499.4,2499.3,3.058]
[1747550725677,1.45512,2499.4,2499.3,3.058]
[1747550727375,2.81512,2499.4,2499.3,3.058]
[1747550730193,0.79998,2499.2,2499.1,1.6168]
[1747550730484,4.00778,2499.2,2499.1,0.6002]
[1747550730884,5.27648,2499.2,2499.1,0.6002]
[1747550733177,0.80001,2499.1,2499.0,3.058]
[1747550733377,18.19601,2499.1,2499.0,3.9e-06]
[1747550733580,0.80005,2499.0,2498.9,3.9e-06]
[1747550733786,0.80014,2498.7,2498.6,3.9e-06]
[1747550733989,20.02894,2498.7,2498.6,3.9e-06]
[1747550734285,25.02894,2498.7,2498.6,3.9e-06]
[1747550735189,29.28718,2498.7,2498.2,1.59766616]
[1747550735384,3.2078,2498.3,2497.8,1.2487]
[1747550735689,5.20882,2497.9,2497.5,1.33712896]
[1747550735890,4.00829,2497.6,2497.5,1.33712896]
[1747550736086,4.00829,2497.6,2497.5,4.39512896]
[1747550738893,3.2078,2497.6,2497.5,4.39512896]
[1747550739189,4.00829,2497.6,2497.5,4.39512896]
[1747550740286,4.00829,2497.6,2497.5,3.058]
[1747550741189,3.2078,2497.6,2497.5,3.058]
[1747550741792,3.2078,2497.6,2497.5,8.058]
[1747550742094,4.00829,2497.6,2497.5,3.058]
[1747550745493,5.32879,2497.6,2497.5,3.058]
[1747550745694,4.00829,2497.6,2497.5,3.058]
[1747550747693,5.33239,2497.6,2497.5,3.058]
[1747550749199,0.80053,2497.5,2497.4,0.1216]
[1747550749398,2.71453,2497.5,2497.4,0.1216]
[1747550749696,0.80053,2497.5,2497.4,0.1216]
[1747550749997,16.80853,2497.5,2497.4,0.1216]
[1747550750301,16.80853,2497.5,2497.4,3.1796]
[1747550753503,0.80053,2497.5,2497.4,3.1796]
[1747550755208,3.2078,2497.6,2497.4,3.1796]
[1747550755417,4.00829,2497.6,2497.5,1.3637]
[1747550755603,3.2078,2497.6,2497.5,1.45588003]
[1747550756105,3.2078,2497.6,2497.5,10.31441003]
[1747550756303,0.80043,2497.8,2497.5,9.51388003]
[1747550756605,0.80046,2497.7,2497.5,12.51188003]
[1747550756811,3.2078,2498.0,2497.6,0.6339]
[1747550756812,0.80045,2497.8,2497.6,0.6339]
[1747550757110,0.80045,2497.8,2497.7,1.3637]
[1747550760007,0.80046,2497.7,2497.6,3.6919]
[1747550760214,0.80046,2497.7,2497.6,5.0134]
[1747550761115,0.80046,2497.7,2497.6,1.9554]
[1747550761315,0.80049,2497.6,2497.5,3.15018003]
[1747550761517,2.71409,2497.6,2497.5,3.15018003]
[1747550761708,2.05799,2497.6,2497.5,3.15018003]
[1747550762208,2.05799,2497.6,2497.5,3.81598003]
[1747550762408,2.05799,2497.6,2497.5,5.10958003]
[1747550763516,2.05799,2497.6,2497.5,4.44378003]
[1747550764218,4.40778622,2497.6,2497.5,4.44378003]
[1747550765017,4.40778622,2497.6,2497.5,3.15018003]
[1747550765318,4.40778622,2497.6,2497.5,0.09218003]
[1747550766915,2.05799,2497.6,2497.5,0.09218003]
[1747550767117,5.21515907,2497.6,2497.5,0.09218003]
[1747550768821,5.90235907,2497.6,2497.5,0.09218003]
[1747550774620,6.53075907,2497.6,2497.5,0.09218003]
[1747550775424,6.53075907,2497.6,2497.5,1.44048003]
[1747550779122,6.53075907,2497.6,2497.5,2.11858003]
[1747550779629,19.94565907,2497.6,2497.5,2.11858003]
[1747550779823,3.95765907,2497.6,2497.5,2.11858003]
[1747550780023,0.80049,2497.6,2497.5,2.11858003]
[1747550780223,0.80049,2497.6,2497.5,5.17658003]
[1747550780830,15.988,2497.8,2497.5,5.17658003]
[1747550781127,0.80048,2497.7,2497.5,5.17658003]
[1747550781329,0.80049,2497.6,2497.5,5.17658003]
[1747550782129,0.80049,2497.6,2497.5,10.17658003]
[1747550782431,0.80049,2497.6,2497.5,5.17658003]
[1747550788736,0.80049,2497.6,2497.5,3.15018003]
[1747550788930,1.44459,2497.6,2497.5,3.15018003]
[1747550789129,2.69129,2497.6,2497.5,4.44648003]
[1747550791237,1.44459,2497.6,2497.5,5.08828003]
[1747550791937,1.44459,2497.6,2497.5,5.76398003]
[1747550792635,0.80049,2497.6,2497.5,5.76398003]
[1747550793733,0.80049,2497.6,2497.5,4.44648003]
[1747550794030,2.85529,2497.6,2497.5,0.97698003]
[1747550794237,0.80062,2497.2,2497.1,2.6251]
[1747550795838,0.80062,2497.2,2497.1,2.7422]
[1747550796131,3.17204026,2497.2,2497.1,2.7422]
[1747550799242,3.17204026,2497.2,2497.1,2.0806]
[1747550799442,3.83574026,2497.2,2497.1,2.0806]
[1747550802442,1.46432,2497.2,2497.1,2.0806]
[1747550803046,9.45132,2497.2,2497.1,2.0806]
[1747550809354,9.45132,2497.2,2497.1,2.17278003]
[1747550811255,9.45132,2497.2,2497.1,1.51318003]
[1747550811456,9.45132,2497.2,2497.1,2.19798003]
[1747550812753,17.43532,2497.2,2497.1,2.19798003]
[1747550813056,17.43532,2497.2,2497.1,2.85788003]
[1747550813251,1.46432,2497.2,2497.1,2.85788003]
[1747550813448,0.80062,2497.2,2497.1,2.85788003]
[1747550815754,0.80062,2497.2,2497.1,2.19798003]
[1747550816259,0.80062,2497.2,2497.1,1.51318003]
[1747550816457,2.72302,2497.2,2497.1,1.51318003]
[1747550816960,2.72302,2497.2,2497.1,0.20928003]
[1747550818662,2.08142,2497.2,2497.1,0.20928003]
[1747550818957,2.08142,2497.2,2497.1,1.45908003]
[1747550819657,2.08142,2497.2,2497.1,3e-08]
[1747550822355,2.39453035,2497.2,2497.1,3e-08]
[1747550827363,2.08142,2497.2,2497.1,3e-08]
[1747550827664,0.80062,2497.2,2497.1,3e-08]
[1747550827866,16.76262,2497.2,2497.1,3e-08]
[1747550828060,20.72438454,2497.2,2497.1,1.32020003]
[1747550828262,4.76238454,2497.2,2497.1,1.32020003]
[1747550828565,3.96176454,2497.2,2497.1,1.32020003]
[1747550829064,4.76238454,2497.2,2497.1,1.32020003]
[1747550831069,3.17684957,2497.2,2497.1,1.32020003]
[1747550833768,0.80062,2497.2,2497.1,1.32020003]
[1747550844777,0.80062,2497.2,2497.1,1.97720003]
[1747550848975,0.80061,2497.3,2497.1,1.97720003]
[1747550849177,2.37622957,2497.5,2497.2,1.2497]
[1747550849476,0.80059,2497.3,2497.2,1.2497]
[1747550850574,0.80057,2497.4,2497.2,1.2497]
[1747550850769,2.37622957,2497.5,2497.3,4.00838]
[1747550850969,3.17675957,2497.5,2497.4,1.8977]
[1747550851175,3.17675957,2497.5,2497.4,2.5835]
[1747550851677,0.80053,2497.5,2497.4,2.5835]
[1747550852179,0.80053,2497.5,2497.4,5.6415]
[1747550854478,0.80053,2497.5,2497.4,4.9935]
[1747550854783,0.80053,2497.5,2497.4,3.058]
[1747550855380,2.10123,2497.5,2497.4,3.058]
[1747550855583,18.05123,2497.5,2497.4,3.058]
[1747550856079,0.80059,2497.3,2497.2,0.09218003]
[1747550856678,2.10129,2497.3,2497.2,0.09218003]
[1747550857881,4.47751957,2497.3,2497.2,1.42928003]
[1747550858182,3.17681957,2497.3,2497.2,1.42928003]
[1747550858878,4.53391957,2497.3,2497.2,1.42928003]
[1747550859979,4.53391957,2497.3,2497.2,0.09218003]
[1747550860986,2.15769,2497.3,2497.2,0.09218003]
[1747550875894,0.80059,2497.3,2497.2,0.09218003]
[1747550876197,2.07419,2497.3,2497.2,0.09218003]
[1747550877503,5.28199,2497.3,2497.2,0.09218003]
[1747550879403,2.07419,2497.3,2497.2,0.09218003]
[1747550880404,10.03819,2497.3,2497.2,0.09218003]
[1747550880605,8.76459,2497.3,2497.2,0.09218003]
[1747550881403,8.76459,2497.3,2497.2,1.36098003]
[1747550881605,8.76459,2497.3,2497.2,2.00618003]
[1747550881996,11.97239,2497.3,2497.2,1.36098003]
[1747550882197,13.31589,2497.3,2497.2,1.36098003]
[1747550882707,13.31589,2497.3,2497.2,0.09218003]
[1747550884709,11.97239,2497.3,2497.2,0.09218003]
[1747550885303,11.97239,2497.3,2497.2,1.33998003]
[1747550885510,13.33309,2497.3,2497.2,1.33998003]
[1747550885908,10.12529,2497.3,2497.2,1.33998003]
[1747550886109,10.12529,2497.3,2497.2,1.96458003]
[1747550886710,11.9328961,2497.3,2497.2,1.96458003]
[1747550887309,11.9328961,2497.3,2497.2,2.61728003]
[1747550887711,3.9688961,2497.3,2497.2,2.61728003]
[1747550887909,3.1683061,2497.3,2497.2,2.61728003]
[1747550888407,3.9688961,2497.3,2497.2,2.61728003]
[1747550890214,2.37515588,2497.4,2497.2,11.62568003]
[1747550890606,2.37515588,2497.4,2497.3,2.04299]
[1747550890806,3.1683061,2497.7,2497.3,1.2424]
[1747550891005,3.9687661,2497.7,2497.6,3.2078]
[1747550892611,3.9687661,2497.7,2497.6,5.1986]
[1747550893217,0.80046,2497.7,2497.6,5.1986]
[1747550894009,0.80046,2497.7,2497.6,5.8225]
[1747550894306,0.80046,2497.7,2497.6,10.8225]
[1747550894701,0.80043,2497.8,2497.6,10.8225]
[1747550894906,0.80043,2497.8,2497.7,1.2482]
[1747550900511,0.80043,2497.8,2497.7,1.34038003]
[1747550901113,11.1688,2498.2,2497.7,2.14083003]
[1747550901314,0.80036,2498.1,2497.8,0.80043]
[1747550901614,0.80035,2498.1,2497.9,0.8004]
[1747550901816,0.80035,2498.1,2498.0,1.9737]
[1747550902117,0.80037,2498.0,2497.9,6.2658]
[1747550902412,0.80037,2498.0,2497.9,4.3923]
[1747550904721,2.79807,2498.0,2497.9,4.3923]
[1747550905017,1.44467,2498.0,2497.9,4.3923]
[1747550905821,2.79807,2498.0,2497.9,4.3923]
[1747550906619,2.79807,2498.0,2497.9,3.058]
[1747550907219,2.79807,2498.0,2497.8,3.058]
[1747550907220,0.8004,2497.9,2497.8,3.058]
[1747550907524,2.0565,2497.9,2497.8,3.058]
[1747550908425,0.8004,2497.9,2497.8,3.058]
[1747550908623,0.8004,2497.9,2497.8,3.7473]
[1747550908823,0.8004,2497.9,2497.8,4.377]
[1747550911021,1.44469,2498.0,2497.8,4.377]
[1747550911223,0.80039,2498.0,2497.9,1.3013]
[1747550912126,0.80039,2498.0,2497.9,4.3593]
[1747550912628,0.80039,2498.0,2497.9,3.058]
[1747550912829,2.04649,2498.0,2497.9,3.058]
[1747550915226,9.99649,2498.0,2497.9,3.058]
[1747550915425,9.99649,2498.0,2497.9,0.87175412]
[1747550915426,22.95549,2498.0,2497.9,0.87175412]
[1747550915629,0.80062,2497.2,2497.1,1.9365]
[1747550916225,0.80062,2497.2,2497.1,1.2559]
[1747550919925,2.16802,2497.2,2497.1,1.2559]
[1747550920621,0.80065,2497.1,2497.0,3.058]
[1747550920817,2.83945,2497.1,2497.0,3.058]
[1747550926636,1.47205,2497.1,2497.0,3.058]
[1747550926829,1.47205,2497.1,2497.0,4.4044]
[1747550927438,0.80065,2497.1,2497.0,4.4044]
[1747550927937,0.80065,2497.1,2497.0,7.6122]
[1747550929632,0.80065,2497.1,2497.0,4.4044]
[1747550930035,0.80065,2497.1,2497.0,4.49658003]
[1747550930437,0.80065,2497.1,2497.0,3.15018003]
[1747550932640,0.80064,2497.2,2497.0,3.15018003]
[1747550932934,0.80065,2497.1,2497.0,6.35798003]
[1747550933142,0.80064,2497.2,2497.0,6.35798003]
[1747550933327,0.80065,2497.1,2497.0,6.35798003]
[1747550933648,7.951,2497.4,2497.0,6.35798003]
[1747550934140,0.80065,2497.1,2497.0,6.35798003]
[1747550934730,0.80063,2497.2,2497.0,6.35798003]
[1747550934933,0.80063,2497.2,2497.1,0.6803]
[1747550935133,0.6484,2497.6,2497.1,0.6803]
[1747550935340,0.80057,2497.4,2497.3,3.2078]
[1747550935737,0.80062,2497.2,2497.1,0.6803]
[1747550938744,0.80061,2497.3,2497.1,0.6803]
[1747550939238,0.80058,2497.4,2497.1,1.48095]
[1747550939446,0.80058,2497.4,2497.3,3.2078]
[1747550940250,0.80055,2497.5,2497.3,6.2658]
[1747550940545,0.80045,2497.8,2497.5,0.80051]
[1747550940744,0.80048,2497.7,2497.4,1.48124]
[1747550941145,0.80049,2497.6,2497.4,4.53924]
[1747550941346,22.9243061,2497.9,2497.4,4.53924]
[1747550941552,0.80044,2497.8,2497.5,0.80052]
[1747550941845,0.80046,2497.7,2497.5,0.80051]
[1747550942145,0.80046,2497.7,2497.5,3.8585]
[1747550942542,0.80045,2497.8,2497.6,0.80049]
[1747550942945,0.80046,2497.7,2497.6,0.80049]
[1747550943444,0.80046,2497.7,2497.5,3.85851]
[1747550944150,0.80049,2497.6,2497.5,3.058]
[1747550944349,0.80049,2497.6,2497.5,6.2658]
[1747550945045,0.80048,2497.7,2497.5,7.06633]
[1747550945851,0.80049,2497.6,2497.5,6.2658]
[1747550947349,0.80049,2497.6,2497.5,7.06633]
[1747550947547,0.80046,2497.7,2497.5,6.2658]
[1747550947751,0.80046,2497.7,2497.5,7.0663]
[1747550948153,0.80046,2497.7,2497.6,0.80049]
[1747550948454,0.80044,2497.8,2497.6,0.80048]
[1747550948655,0.80044,2497.8,2497.7,0.623]
[1747550950258,0.80044,2497.8,2497.7,1.2848]
[1747550952358,0.80044,2497.8,2497.7,2.5561]
[1747550952764,0.80044,2497.8,2497.7,1.8943]
[1747550956565,0.80042,2497.9,2497.7,2.69476]
[1747550956861,0.80042,2497.9,2497.8,4.5309]
[1747550957271,0.80042,2497.9,2497.8,7.5889]
[1747550960653,2.13772,2497.9,2497.8,7.5889]
[1747550962065,2.13772,2497.9,2497.8,6.2658]
[1747550965157,2.13772,2497.9,2497.8,3.058]
[1747550967262,2.13772,2497.9,2497.8,4.4195]
[1747550967769,2.13772,2497.9,2497.8,3.058]
[1747550969272,0.80043,2497.8,2497.7,3.29998003]
[1747550969572,2.14763,2497.8,2497.7,3.29998003]
[1747550970773,2.14763,2497.8,2497.7,4.58468003]
[1747550972075,2.14763,2497.8,2497.7,5.25868003]
[1747550972475,0.80043,2497.8,2497.7,5.25868003]
[1747550972974,0.80043,2497.8,2497.7,2.05088003]
[1747550973375,0.80043,2497.8,2497.7,1.37688003]
[1747550974577,3.1683061,2498.0,2497.7,4.58468003]
[1747550974772,0.80043,2497.8,2497.7,4.58468003]
[1747550975074,0.80043,2497.8,2497.7,3.29998003]
[1747550980581,0.80043,2497.8,2497.7,0.09218003]
[1747550981488,0.80042,2497.9,2497.7,0.09218003]
[1747550981683,0.80042,2497.9,2497.7,3.29998003]
[1747550982382,0.80043,2497.8,2497.7,3.29998003]
[1747550983277,0.80043,2497.8,2497.7,0.09218003]
[1747550983475,0.80043,2497.8,2497.7,3.29998003]
[1747550985684,0.80043,2497.8,2497.7,0.09218003]
[1747550986675,0.80041,2497.9,2497.7,0.89264003]
[1747550986883,0.6566,2498.2,2497.8,0.80043]
[1747550987186,0.80038,2498.0,2497.9,0.6896]
[1747550987779,0.80035,2498.1,2497.9,1.48997]
[1747550987984,0.6566,2498.2,2497.9,0.6896]
[1747550988281,0.80037,2498.0,2497.9,3.7476]
[1747550991884,0.80037,2498.0,2497.9,5.105]
[1747550994190,0.80037,2498.0,2497.9,3.058]
[1747550994784,1.44217,2498.0,2497.9,3.058]
[1747550995184,0.80043,2497.8,2497.7,0.09218003]
[1747550996291,2.09913,2497.8,2497.7,0.09218003]
[1747550998293,5.30693,2497.8,2497.7,0.09218003]
[1747550998689,10.30693,2497.8,2497.7,0.09218003]
[1747550998892,0.80053,2497.5,2497.4,3.058]
[1747550999195,0.80056,2497.4,2497.3,3.2078]
[1747550999387,2.73296,2497.4,2497.3,3.2078]
[1747550999995,1.44996,2497.4,2497.3,3.2078]
[1747551000195,0.6494,2497.4,2497.3,6.2658]
[1747551000996,1.44996,2497.4,2497.3,6.2658]
[1747551001589,2.78956,2497.4,2497.3,6.2658]
[1747551002094,2.78956,2497.4,2497.3,3.2078]
[1747551002497,0.80062,2497.2,2497.1,1.3316]
[1747551002799,0.80062,2497.2,2497.1,4.5394]
[1747551003699,0.80062,2497.2,2497.1,3.2078]
[1747551004897,0.80072,2496.9,2496.8,3.2078]
[1747551005995,1.42202,2496.9,2496.8,4.5475]
[1747551006196,1.42202,2496.9,2496.8,7.6055]
[1747551010107,0.80072,2496.9,2496.8,7.6055]
[1747551010405,0.80072,2496.9,2496.8,8.2287]
[1747551011303,0.80069,2497.0,2496.8,8.2287]
[1747551011512,1.3339,2497.3,2496.9,2.12701]
[1747551011809,0.80065,2497.1,2497.0,1.3263]
[1747551012211,0.80065,2497.1,2497.0,4.3843]
[1747551012605,0.80065,2497.1,2497.0,3.058]
[1747551014113,0.80065,2497.1,2497.0,5.0426]
[1747551017607,0.80065,2497.1,2497.0,4.3851]
[1747551019019,0.80065,2497.1,2497.0,4.47728003]
[1747551026220,0.80065,2497.1,2497.0,1.41928003]
[1747551027127,0.80065,2497.1,2497.0,4.47728003]
[1747551038337,0.80065,2497.1,2497.0,1.41928003]
[1747551042131,0.80065,2497.1,2497.0,4.47728003]
[1747551055952,2.79095,2497.1,2497.0,4.47728003]
[1747551056257,2.79095,2497.1,2497.0,1.41928003]
[1747551056958,2.79095,2497.1,2497.0,0.09218003]
[1747551059463,2.79095,2497.1,2497.0,1.42278003]
[1747551060866,1.47795,2497.1,2497.0,1.42278003]
[1747551062058,2.83985,2497.1,2497.0,1.42278003]
[1747551062366,2.83985,2497.1,2497.0,4.48078003]
[1747551063163,2.83985,2497.1,2497.0,0.09218003]
[1747551064167,6.04765,2497.1,2497.0,0.09218003]
[1747551064461,13.95265,2497.1,2497.0,0.09218003]
[1747551064659,18.95265,2497.1,2497.0,3e-08]
[1747551067054,15.74485,2497.1,2497.0,3e-08]
[1747551067264,18.95265,2497.1,2497.0,3e-08]
[1747551070368,13.95265,2497.1,2497.0,3e-08]
[1747551071764,4.00845,2497.1,2497.0,3e-08]
[1747551071969,0.80065,2497.1,2497.0,3e-08]
[1747551072171,0.80065,2497.1,2497.0,3.05800003]
[1747551072975,4.00845,2497.1,2497.0,2.03313003]
[1747551073167,0.80081,2496.6,2496.5,3.2078]
[1747551075272,0.80081,2496.6,2496.5,6.2658]
[1747551079875,0.80081,2496.6,2496.5,6.35798003]
[1747551085179,0.80081,2496.6,2496.5,3.29998003]
[1747551086076,0.80081,2496.6,2496.5,6.35798003]
[1747551091485,0.80081,2496.6,2496.5,3.15018003]
[1747551091882,0.80081,2496.6,2496.5,4.48998003]
[1747551092283,0.80078,2496.7,2496.5,4.48998003]
[1747551092487,0.80078,2496.7,2496.6,1.3398]
[1747551093385,0.80077,2496.8,2496.6,1.3398]
[1747551093680,0.80077,2496.8,2496.7,1.2661]
[1747551094484,0.80077,2496.8,2496.7,2.6335]
[1747551096188,0.80077,2496.8,2496.7,2.72568003]
[1747551107894,0.80075,2496.8,2496.7,2.72568003]
[1747551118706,0.80075,2496.8,2496.7,2.09348003]
[1747551123610,0.80075,2496.8,2496.7,0.09218003]
[1747551125118,0.80075,2496.8,2496.7,1.43688003]
[1747551125317,0.80075,2496.8,2496.7,0.09218003]
[1747551126314,2.00208,2496.6,2496.2,2.2033]
[1747551126518,0.80097,2496.1,2495.9,1.59766616]
[1747551126818,0.80101,2496.0,2495.9,1.59766616]
[1747551127014,3.36181,2496.0,2495.9,1.59766616]
[1747551129618,0.8011,2495.7,2495.6,1.33712896]
[1747551129819,0.80113,2495.6,2495.5,3.16107019]
[1747551130013,0.80113,2495.6,2495.4,3.2078]
[1747551130014,0.80117,2495.5,2495.4,3.2078]
[1747551130219,0.80117,2495.5,2494.0,2.64870154]
[1747551130220,0.80145,2494.6,2494.0,2.64870154]
[1747551130517,0.80158,2494.2,2494.1,0.43087]
[1747551130822,0.80162,2494.1,2494.0,0.77824863]
[1747551131020,2.07793534,2494.1,2494.0,8.63e-06]
[1747551131224,26.05793534,2494.1,2494.0,8.63e-06]
[1747551131422,21.06093534,2494.1,2494.0,8.63e-06]
[1747551131821,21.06893534,2494.1,2494.0,8.63e-06]
[1747551132328,18.01093534,2494.1,2494.0,3.05800863]
[1747551132626,2.07793534,2494.1,2494.0,3.05800863]
[1747551132825,18.00793534,2494.1,2494.0,3.05800863]
[1747551133129,2.07793534,2494.1,2494.0,3.05800863]
[1747551133429,18.00493534,2494.1,2494.0,3.05800863]
[1747551133623,2.07793534,2494.1,2494.0,3.05800863]
[1747551133825,7.899,2494.2,2494.0,3.05800863]
[1747551134021,4.77285092,2494.3,2494.1,1.3108]
[1747551134221,12.79985092,2494.3,2494.0,3.05800863]
[1747551134517,0.80162,2494.1,2494.0,3.05800863]
[1747551136423,0.80162,2494.1,2494.0,3.058]
[1747551139729,11.2378,2494.3,2494.0,3.15018003]
[1747551139730,0.80158,2494.2,2494.0,3.15018003]
[1747551139931,0.80158,2494.2,2494.1,0.6736]
[1747551140120,3.2078,2494.3,2494.1,0.6736]
[1747551140323,3.2078,2494.3,2494.1,1.3089]
[1747551140724,4.00937,2494.3,2494.1,1.3089]
[1747551141124,0.80158,2494.2,2494.1,1.3089]
[1747551141528,3.2078,2494.3,2494.1,6.3089]
[1747551141731,0.80155,2494.3,2494.1,1.3089]
[1747551142133,3.2078,2494.6,2494.1,1.3089]
[1747551142134,0.80158,2494.2,2494.1,1.3089]
[1747551142527,0.80158,2494.2,2494.1,6.3089]
[1747551146129,4.00937,2494.3,2494.1,6.3089]
[1747551146328,4.00937,2494.3,2494.1,1.3089]
[1747551146833,4.00937,2494.3,2494.1,9.4549]
[1747551147534,0.80158,2494.2,2494.1,9.4549]
[1747551147731,3.2078,2494.3,2494.1,10.2565]
[1747551147943,3.2078,2494.3,2494.1,10.25649]
[1747551148438,4.00935,2494.3,2494.1,10.25649]
[1747551148629,3.2078,2494.3,2494.2,0.80158]
[1747551149237,4.00935,2494.3,2494.1,13.31449]
[1747551150031,3.2078,2494.3,2494.2,0.80158]
[1747551151137,3.2078,2495.0,2494.6,0.80144]
[1747551151338,3.2078,2495.0,2494.7,2.10591]
[1747551151538,0.80139,2494.8,2494.7,1.3045]
[1747551151840,0.80137,2494.9,2494.7,1.3045]
[1747551152135,0.80137,2494.9,2494.8,1.2745]
[1747551152639,0.80137,2494.9,2494.8,2.07589]
[1747551152940,4.00914,2495.0,2494.8,2.07589]
[1747551153137,0.80136,2494.9,2494.8,4.3325]
[1747551154541,4.00915,2495.0,2494.8,4.3325]
[1747551155040,0.80136,2494.9,2494.8,4.3325]
[1747551156542,4.00914,2495.0,2494.8,4.3325]
[1747551156936,3.2078,2495.0,2494.8,5.13386]
[1747551157643,4.00913,2495.0,2494.8,4.3325]
[1747551158944,3.2078,2495.0,2494.8,4.3325]
[1747551159346,3.2078,2495.0,2494.9,0.80136]
[1747551159547,4.00913,2495.0,2494.9,1.251]
[1747551160444,4.00913,2495.0,2494.9,4.309]
[1747551165452,3.2078,2495.0,2494.9,4.309]
[1747551166152,4.00913,2495.0,2494.9,4.309]
[1747551166549,3.2078,2495.0,2494.9,5.11036]
[1747551166950,1.56505092,2495.2,2494.9,5.11036]
[1747551166951,2.36631092,2495.2,2494.9,9.309]
[1747551167251,1.56505092,2495.2,2495.1,4.00909]
[1747551167444,1.56505092,2495.2,2495.1,5.80129]
[1747551167647,1.56505092,2495.2,2495.1,12.35985969]
[1747551168556,0.80121,2495.4,2495.2,0.80125]
[1747551168751,0.80123,2495.3,2495.2,1.9349]
[1747551169142,1.44131,2495.4,2495.2,1.9349]
[1747551169339,1.44131,2495.4,2495.3,1.3799]
[1747551169544,1.44131,2495.4,2495.3,9.4609]
[1747551169744,2.77051,2495.4,2495.3,9.4609]
[1747551170153,2.77051,2495.4,2495.3,12.5189]
[1747551170346,3.2078,2495.5,2495.3,12.5189]
[1747551170547,1.4712,2495.4,2495.3,12.5189]
[1747551171043,0.67,2495.4,2495.3,13.32013]
[1747551172646,1.4712,2495.4,2495.3,12.5189]
[1747551172951,0.67,2495.4,2495.3,13.32013]
[1747551174455,0.80119,2495.5,2495.3,13.32013]
[1747551174654,4.64555,2495.6,2495.4,0.80118]
[1747551174854,4.64555,2495.6,2495.5,1.3567]
[1747551175153,3.8444,2495.6,2495.5,2.81317]
[1747551175552,3.2078,2495.6,2495.5,2.81317]
[1747551175753,4.00893,2495.6,2495.5,2.012]
[1747551175948,4.00893,2495.6,2495.5,2.81317]
[1747551176251,4.00893,2495.6,2495.5,5.07]
[1747551180548,4.00893,2495.6,2495.5,4.4147]
[1747551180750,5.32563,2495.6,2495.5,4.4147]
[1747551181554,5.32563,2495.6,2495.5,3.058]
[1747551181959,10.32563,2495.6,2495.5,3.058]
[1747551185358,10.32563,2495.6,2495.5,3.15018003]
[1747551186964,13.49132813,2495.6,2495.5,2.11508003]
[1747551187263,13.49132813,2495.6,2495.5,0.09218003]
[1747551188159,13.49132813,2495.6,2495.5,3.15018003]
[1747551189258,10.32563,2495.6,2495.5,3.15018003]
[1747551189661,5.32563,2495.6,2495.5,3.15018003]
[1747551189864,21.43463,2495.6,2495.5,3.15018003]
[1747551190758,3.2078,2495.6,2495.5,3.15018003]
[1747551191762,4.00893,2495.6,2495.5,3.15018003]
[1747551191970,3.2078,2495.6,2495.5,3.15018003]
[1747551192269,4.00893,2495.6,2495.5,3.15018003]
[1747551192565,3.2078,2495.6,2495.5,3.15018003]
[1747551193065,4.00893,2495.6,2495.5,3.15018003]
[1747551194366,5.58965235,2495.6,2495.5,3.15018003]
[1747551195161,4.78852235,2495.6,2495.5,3.15018003]
[1747551195371,5.58965235,2495.6,2495.5,3.15018003]
[1747551195570,4.78852235,2495.6,2495.5,4.42138003]
[1747551196169,4.78852235,2495.6,2495.5,13.24755003]
[1747551197265,4.78852235,2495.6,2495.5,12.44638003]
[1747551197766,3.2078,2495.6,2495.5,12.44638003]
[1747551197964,3.2078,2495.6,2495.5,13.24755003]
[1747551198165,3.2078,2495.6,2495.5,22.57358816]
[1747551199171,5.57888353,2495.9,2495.5,21.77241816]
[1747551199363,5.57888353,2495.9,2495.8,0.80107]
[1747551199670,2.37108353,2495.9,2495.8,12.03587]
[1747551199864,2.37108353,2495.9,2495.8,21.37062661]
[1747551200161,3.16144471,2496.2,2496.0,0.80099]
[1747551200369,3.96239471,2496.2,2496.1,10.0066]
[1747551200568,3.16144471,2496.2,2496.1,15.1900028]
[1747551200974,5.74850382,2496.4,2496.1,15.1899928]
[1747551200975,0.98584928,2496.4,2496.1,15.1899928]
[1747551201169,0.98584928,2496.4,2496.2,9.3509]
[1747551201373,1.78674928,2496.4,2496.3,1.3249]
[1747551202066,1.78674928,2496.4,2496.3,4.3829]
[1747551202472,1.78674928,2496.4,2496.3,5.0466]
[1747551203072,1.78674928,2496.4,2496.3,21.0866]
[1747551203669,1.78674928,2496.4,2496.3,4.3829]
[1747551204269,2.43624928,2496.4,2496.3,4.3829]
[1747551205370,1.4504,2496.4,2496.3,4.3829]
[1747551206672,1.4504,2496.4,2496.3,3.058]
[1747551209571,2.1205,2496.4,2496.3,3.058]
[1747551215778,2.1205,2496.4,2496.3,3.15018003]
[1747551220481,4.49235211,2496.4,2496.3,3.15018003]
[1747551222782,0.8009,2496.4,2496.3,3.15018003]
[1747551229386,0.80087,2496.5,2496.3,3.15018003]
[1747551229587,0.80087,2496.5,2496.4,1.8918]
[1747551229784,0.80087,2496.5,2496.4,2.5685]
[1747551229983,0.80084,2496.5,2496.4,2.5685]
[1747551230285,0.80084,2496.5,2496.4,5.6265]
[1747551231689,6.36924471,2496.6,2496.4,5.6265]
[1747551231891,6.36924471,2496.6,2496.5,1.3505]